fUSD/lending_fUSD_20240212
["ID","MTS","AMOUNT","RATE_DAILY","PERIOD"]
[313827973,1707744643444,-2661.51,0.00022938,2]
[313827975,1707744643453,-500.0,0.00022938,2]
[313827977,1707744643463,-1151.98,0.00022938,2]
[313827978,1707744643472,-402.92433487,0.00022939,2]
[313827980,1707744643482,-334.70358624,0.00022939,2]
[313827982,1707744643491,-416.55990284,0.00022939,2]
[313827984,1707744643500,-500.0,0.00022939,2]
[313827986,1707744643510,-500.0,0.00022939,2]
[313827988,1707744643519,-500.0,0.00022939,2]
[313827990,1707744643528,-500.0,0.00022939,2]
[313827992,1707744643538,-500.0,0.00022939,2]
[313827994,1707744643547,-500.0,0.00022939,2]
[313827996,1707744643556,-500.0,0.00022939,2]
[313827998,1707744643565,-500.0,0.00022939,2]
[313828001,1707744643574,-500.0,0.00022939,2]
[313828003,1707744643583,-500.0,0.00022939,2]
[313828004,1707744643592,-500.0,0.00022939,2]
[313828007,1707744643601,-549.04160785,0.00022939,2]
[313828008,1707744643610,-500.0,0.00022939,2]
[313828010,1707744643619,-500.0,0.00022939,2]
[313828013,1707744643628,-500.0,0.00022939,2]
[313828015,1707744643637,-500.0,0.00022939,2]
[313828017,1707744643646,-500.0,0.00022939,2]
[313828019,1707744643655,-500.0,0.00022939,2]
[313828020,1707744643664,-500.0,0.00022939,2]
[313828022,1707744643674,-500.0,0.00022939,2]
[313828024,1707744643683,-500.0,0.00022939,2]
[313828026,1707744643692,-500.0,0.00022939,2]
[313828029,1707744643701,-500.0,0.00022939,2]
[313828031,1707744643710,-500.0,0.00022939,2]
[313828032,1707744643719,-500.0,0.00022939,2]
[313828034,1707744643729,-500.0,0.00022939,2]
[313828036,1707744643738,-500.0,0.00022939,2]
[313828038,1707744643747,-500.0,0.00022939,2]
[313828040,1707744643756,-500.0,0.00022939,2]
[313828042,1707744643766,-500.0,0.00022939,2]
[313828045,1707744643776,-500.0,0.00022939,2]
[313828047,1707744643785,-500.0,0.00022939,2]
[313828049,1707744643794,-500.0,0.00022939,2]
[313828050,1707744643803,-500.0,0.00022939,2]
[313828052,1707744643812,-500.0,0.00022939,2]
[313828054,1707744643822,-500.0,0.00022939,2]
[313828056,1707744643831,-514.33101893,0.00022939,2]
[313828059,1707744643841,-500.0,0.00022939,2]
[313828060,1707744643851,-500.0,0.00022939,2]
[313828062,1707744643860,-500.0,0.00022939,2]
[313828064,1707744643869,-500.0,0.00022939,2]
[313828066,1707744643878,-500.0,0.00022939,2]
[313828068,1707744643887,-500.0,0.00022939,2]
[313828070,1707744643895,-500.0,0.00022939,2]
[313828072,1707744643904,-500.0,0.00022939,2]
[313828075,1707744643913,-500.0,0.00022939,2]
[313828077,1707744643922,-500.0,0.00022939,2]
[313828078,1707744643931,-500.0,0.00022939,2]
[313828080,1707744643940,-500.0,0.00022939,2]
[313828082,1707744643949,-500.0,0.00022939,2]
[313828084,1707744643958,-500.0,0.00022939,2]
[313828086,1707744643967,-500.0,0.00022939,2]
[313828088,1707744643976,-503.66,0.00022939,2]
[313828091,1707744643986,-601.65,0.00022939,2]
[313828092,1707744643994,-500.0,0.00022939,2]
[313828094,1707744644004,-500.0,0.00022939,2]
[313828096,1707744644013,-500.0,0.00022939,2]
[313828098,1707744644022,-500.0,0.00022939,2]
[313828100,1707744644031,-500.0,0.00022939,2]
[313828102,1707744644041,-226.12259555,0.00022939,2]
[313828104,1707744644049,-500.0,0.00022939,2]
[313828106,1707744644059,-500.0,0.00022939,2]
[313828108,1707744644067,-152.00655476,0.00022939,2]
[313828110,1707744644076,-500.0,0.00022939,2]
[313828112,1707744644085,-1302.92,0.00022939,2]
[313828114,1707744644094,-500.0,0.00022939,2]
[313828116,1707744644103,-500.0,0.00022939,2]
[313828118,1707744644113,-500.0,0.00022939,2]
[313828120,1707744644122,-257.95045791,0.00022939,2]
[313828122,1707744644131,-500.0,0.00022939,2]
[313828124,1707744644140,-500.0,0.00022939,2]
[313828126,1707744644150,-500.0,0.00022939,2]
[313828128,1707744644159,-500.0,0.00022939,2]
[313828130,1707744644167,-500.0,0.00022939,2]
[313828132,1707744644176,-500.0,0.00022939,2]
[313828134,1707744644186,-500.0,0.00022939,2]
[313828136,1707744644195,-994.46,0.00022939,2]
[313828138,1707744644205,-500.0,0.00022939,2]
[313828140,1707744644217,-500.0,0.00022939,2]
[313828142,1707744644226,-500.0,0.00022939,2]
[313828144,1707744644235,-1497.25,0.00022939,2]
[313828146,1707744644244,-1796.37,0.00022939,2]
[313828148,1707744644254,-500.0,0.00022939,2]
[313828150,1707744644263,-500.0,0.00022939,2]
[313828152,1707744644272,-1163.17,0.00022939,2]
[313828153,1707744644282,-500.0,0.00022939,2]
[313828155,1707744644291,-691.62,0.00022939,2]
[313828157,1707744644301,-500.0,0.00022939,2]
[313828159,1707744644311,-500.0,0.00022939,2]
[313828161,1707744644320,-2847.34,0.00022939,2]
[313828163,1707744644329,-500.0,0.00022939,2]
[313828165,1707744644339,-500.0,0.00022939,2]
[313828167,1707744644348,-500.0,0.00022939,2]
[313828169,1707744644357,-500.0,0.00022939,2]
[313828171,1707744644365,-500.0,0.00022939,2]
[313828173,1707744644375,-500.0,0.00022939,2]
[313828175,1707744644384,-1235.54,0.00022939,2]
[313828177,1707744644393,-500.0,0.00022939,2]
[313828179,1707744644403,-500.0,0.00022939,2]
[313828181,1707744644412,-1778.4,0.00022939,2]
[313828183,1707744644421,-500.0,0.00022939,2]
[313828185,1707744644429,-500.0,0.00022939,2]
[313828187,1707744644439,-151.24319906,0.00022939,2]
[313828189,1707744644448,-495.97919249,0.00022939,2]
[313828191,1707744644457,-500.0,0.00022939,2]
[313828193,1707744644466,-500.0,0.00022939,2]
[313828195,1707744644477,-850.04,0.00022939,2]
[313828197,1707744644486,-2656.47,0.00022939,2]
[313828199,1707744644495,-522.89,0.00022939,2]
[313828200,1707744644504,-603.68,0.00022939,2]
[313828202,1707744644513,-500.0,0.00022939,2]
[313828204,1707744644522,-588.77,0.00022939,2]
[313828206,1707744644532,-200.14949305,0.00022939,2]
[313828208,1707744644541,-500.0,0.00022939,2]
[313828211,1707744644551,-500.0,0.00022939,2]
[313828213,1707744644560,-500.0,0.00022939,2]
[313828214,1707744644569,-500.0,0.00022939,2]
[313828216,1707744644578,-500.0,0.00022939,2]
[313828218,1707744644587,-544.59,0.00022939,2]
[313828220,1707744644596,-152.81079477,0.00022939,2]
[313828222,1707744644606,-2701.07,0.00022939,2]
[313828224,1707744644615,-500.0,0.00022939,2]
[313828226,1707744644624,-500.0,0.00022939,2]
[313828228,1707744644633,-2511.66,0.00022939,2]
[313828230,1707744644642,-500.0,0.00022939,2]
[313828232,1707744644651,-500.0,0.00022939,2]
[313828234,1707744644661,-500.0,0.00022939,2]
[313828236,1707744644670,-1223.55,0.00022939,2]
[313828238,1707744644679,-500.0,0.00022939,2]
[313828240,1707744644688,-2454.57,0.00022939,2]
[313828242,1707744644698,-1000.0,0.00022939,7]
[313828244,1707744644707,-500.0,0.00022939,2]
[313828246,1707744644716,-927.58,0.00022939,2]
[313828248,1707744644725,-500.0,0.00022939,2]
[313828250,1707744644734,-500.0,0.00022939,2]
[313828252,1707744644745,-500.0,0.00022939,2]
[313828254,1707744644754,-500.0,0.00022939,2]
[313828256,1707744644763,-500.0,0.00022939,2]
[313828258,1707744644772,-500.0,0.00022939,2]
[313828260,1707744644781,-811.42,0.00022939,2]
[313828262,1707744644789,-500.0,0.00022939,2]
[313828263,1707744644798,-500.0,0.00022939,2]
[313828265,1707744644808,-500.0,0.00022939,2]
[313828266,1707744644816,-500.0,0.00022939,2]
[313828267,1707744644826,-500.0,0.00022939,2]
[313828268,1707744644835,-1924.27,0.00022939,2]
[313828269,1707744644844,-500.0,0.00022939,2]
[313828270,1707744644854,-500.0,0.00022939,2]
[313828271,1707744644863,-500.0,0.00022939,2]
[313828272,1707744644873,-500.0,0.00022939,2]
[313828273,1707744644883,-500.0,0.00022939,2]
[313828274,1707744644893,-500.0,0.00022939,2]
[313828275,1707744644903,-500.0,0.00022939,2]
[313828276,1707744644913,-500.0,0.00022939,2]
[313828277,1707744644923,-588.78,0.00022939,2]
[313828278,1707744644932,-500.0,0.00022939,2]
[313828279,1707744644942,-500.0,0.00022939,2]
[313828280,1707744644951,-1112.51,0.00022939,2]
[313828281,1707744644960,-500.0,0.00022939,2]
[313828282,1707744644971,-500.0,0.00022939,2]
[313828283,1707744644980,-500.0,0.00022939,2]
[313828284,1707744644990,-500.0,0.00022939,2]
[313828285,1707744645000,-500.0,0.00022939,2]
[313828286,1707744645009,-164.22945709,0.00022939,2]
[313828287,1707744645019,-500.0,0.00022939,2]
[313828288,1707744645028,-500.0,0.00022939,2]
[313828289,1707744645038,-500.0,0.00022939,2]
[313828290,1707744645047,-500.0,0.00022939,2]
[313828291,1707744645057,-500.0,0.00022939,2]
[313828292,1707744645066,-500.0,0.00022939,2]
[313828293,1707744645076,-500.0,0.00022939,2]
[313828294,1707744645085,-4901.25,0.00022939,2]
[313828295,1707744645095,-500.0,0.00022939,2]
[313828296,1707744645105,-1209.78,0.00022939,2]
[313828297,1707744645114,-500.0,0.00022939,2]
[313828298,1707744645123,-500.0,0.00022939,2]
[313828299,1707744645133,-500.0,0.00022939,2]
[313828300,1707744645142,-500.0,0.00022939,2]
[313828301,1707744645152,-938.26,0.00022939,2]
[313828302,1707744645162,-500.0,0.00022939,2]
[313828303,1707744645171,-1679.76,0.00022939,2]
[313828304,1707744645181,-500.0,0.00022939,2]
[313828305,1707744645191,-500.0,0.00022939,2]
[313828306,1707744645201,-500.0,0.00022939,2]
[313828307,1707744645212,-591.14750221,0.00022939,2]
[313828308,1707744645222,-563.73,0.00022939,2]
[313828309,1707744645231,-500.0,0.00022939,2]
[313828310,1707744645241,-959.45,0.00022939,2]
[313828311,1707744645251,-500.0,0.0002294,2]
[313828312,1707744645260,-500.0,0.0002294,2]
[313828313,1707744645270,-500.0,0.0002294,2]
[313828314,1707744645279,-500.0,0.0002294,2]
[313828315,1707744645291,-500.0,0.0002294,2]
[313828316,1707744645301,-500.0,0.0002294,2]
[313828317,1707744645310,-500.0,0.0002294,2]
[313828318,1707744645322,-562.13751795,0.0002294,2]
[313828320,1707744645333,-500.0,0.0002294,2]
[313828322,1707744645345,-500.0,0.0002294,2]
[313828324,1707744645356,-556.47,0.0002294,2]
[313828326,1707744645365,-500.0,0.0002294,2]
[313828328,1707744645378,-500.0,0.0002294,2]
[313828330,1707744645387,-500.0,0.0002294,2]
[313828331,1707744645397,-500.0,0.0002294,2]
[313828341,1707744645514,-500.0,0.0002294,2]
[313828343,1707744645524,-509.97645304,0.0002294,2]
[313828345,1707744645533,-500.0,0.0002294,2]
[313828346,1707744645542,-500.0,0.0002294,2]
[313828347,1707744645552,-500.0,0.0002294,2]
[313828348,1707744645561,-411.99204018,0.0002294,2]
[313828349,1707744645570,-500.0,0.0002294,2]
[313828350,1707744645580,-480.0,0.0002294,2]
[313828351,1707744645589,-500.0,0.0002294,2]
[313828352,1707744645599,-167.14953187,0.0002294,2]
[313828353,1707744645609,-500.0,0.0002294,2]
[313828354,1707744645619,-500.0,0.0002294,2]
[313828355,1707744645630,-512.87122048,0.0002294,2]
[313828356,1707744645640,-500.0,0.0002294,2]
[313828357,1707744645650,-500.0,0.0002294,2]
[313828358,1707744645659,-505.31424112,0.0002294,2]
[313828359,1707744645669,-500.0,0.0002294,2]
[313828360,1707744645679,-500.0,0.0002294,2]
[313828361,1707744645690,-500.0,0.0002294,2]
[313828362,1707744645700,-500.0,0.0002294,2]
[313828363,1707744645710,-500.0,0.0002294,2]
[313828364,1707744645719,-500.0,0.0002294,2]
[313828365,1707744645728,-500.0,0.0002294,2]
[313828366,1707744645738,-517.88,0.0002294,2]
[313828367,1707744645747,-210.38738254,0.00022971,2]
[313828368,1707744645758,-500.0,0.00022981,2]
[313828369,1707744645767,-500.0,0.00022981,2]
[313828370,1707744645777,-500.0,0.00022981,2]
[313828371,1707744645787,-500.0,0.00022981,2]
[313828372,1707744645797,-500.0,0.00022981,2]
[313828373,1707744645806,-500.0,0.00022981,2]
[313828374,1707744645816,-500.0,0.00022981,2]
[313828375,1707744645825,-500.0,0.00022981,2]
[313828376,1707744645834,-500.0,0.00022981,2]
[313828377,1707744645843,-500.0,0.00022981,2]
[313828378,1707744645852,-500.0,0.00022981,2]
[313828379,1707744645861,-500.0,0.00022981,2]
[313828380,1707744645871,-500.0,0.00022981,2]
[313828381,1707744645880,-595.82058807,0.00022981,2]
[313828382,1707744645889,-500.0,0.00022981,2]
[313828383,1707744645898,-500.0,0.00022981,2]
[313828384,1707744645906,-500.0,0.00022981,2]
[313828385,1707744645916,-171.52151315,0.00022981,2]
[313828386,1707744645925,-500.0,0.00022981,2]
[313828388,1707744645934,-500.0,0.00022981,2]
[313828389,1707744645943,-151.26749419,0.00022981,2]
[313828390,1707744645952,-500.0,0.00022981,2]
[313828391,1707744645961,-500.0,0.00022981,2]
[313828392,1707744645970,-500.0,0.00022981,2]
[313828393,1707744645980,-500.0,0.00022981,2]
[313828394,1707744645989,-500.0,0.00022981,2]
[313828395,1707744645999,-535.46042234,0.00022981,2]
[313828396,1707744646008,-500.0,0.00022981,2]
[313828397,1707744646018,-500.0,0.00022981,2]
[313828398,1707744646027,-500.0,0.00022981,2]
[313828399,1707744646039,-500.0,0.00022981,2]
[313828400,1707744646048,-258.14339674,0.00022981,2]
[313828401,1707744646057,-522.14497934,0.00022981,2]
[313828402,1707744646066,-500.0,0.00022981,2]
[313828403,1707744646076,-500.0,0.00022981,2]
[313828404,1707744646086,-500.0,0.00022981,2]
[313828405,1707744646096,-500.0,0.00022981,2]
[313828406,1707744646106,-279.92108384,0.00022981,2]
[313828407,1707744646116,-175.61,0.00022981,2]
[313828408,1707744646126,-500.0,0.00022981,2]
[313828409,1707744646135,-500.0,0.00022981,2]
[313828410,1707744646145,-500.0,0.00022981,2]
[313828411,1707744646155,-500.0,0.00022981,2]
[313828412,1707744646164,-500.0,0.00022981,2]
[313828413,1707744646174,-500.0,0.00022981,2]
[313828414,1707744646183,-209.91097028,0.00022981,2]
[313828415,1707744646192,-500.0,0.00022981,2]
[313828416,1707744646202,-182.78984268,0.00022981,2]
[313828417,1707744646215,-500.0,0.00022981,2]
[313828418,1707744646225,-416.40038744,0.00022981,2]
[313828419,1707744646234,-500.0,0.00022981,2]
[313828420,1707744646243,-500.0,0.00022981,2]
[313828421,1707744646253,-500.0,0.00022981,2]
[313828422,1707744646263,-500.0,0.00022981,2]
[313828423,1707744646272,-500.0,0.00022981,2]
[313828424,1707744646282,-500.0,0.00022981,2]
[313828425,1707744646295,-500.0,0.00022981,2]
[313828426,1707744646305,-500.0,0.00022981,2]
[313828427,1707744646315,-500.0,0.00022981,2]
[313828428,1707744646325,-550.26,0.00022981,2]
[313828429,1707744646335,-500.0,0.00022981,2]
[313828430,1707744646344,-302.74098847,0.00022981,2]
[313828431,1707744646353,-500.0,0.00022981,2]
[313828432,1707744646363,-4.14881656,0.00022981,2]
[313828433,1707744646413,-515.10547377,0.00022981,2]
[313828434,1707744646422,-500.0,0.00022981,2]
[313828435,1707744646432,-981.92,0.00022981,2]
[313828436,1707744646441,-500.0,0.00022981,2]
[313828437,1707744646450,-500.0,0.00022981,2]
[313828438,1707744646460,-500.0,0.00022981,2]
[313828439,1707744646469,-500.0,0.00022981,2]
[313828440,1707744646479,-1134.14,0.00022981,2]
[313828441,1707744646488,-500.0,0.00022981,2]
[313828442,1707744646498,-500.0,0.00022981,2]
[313828443,1707744646507,-541.7,0.00022981,2]
[313828444,1707744646517,-499.45703501,0.00022981,2]
[313828445,1707744646526,-500.0,0.00022981,2]
[313828446,1707744646538,-500.0,0.00022981,2]
[313828447,1707744646547,-500.0,0.00022981,2]
[313828448,1707744646557,-500.0,0.00022981,2]
[313828449,1707744646566,-556.632086,0.00022981,2]
[313828450,1707744646575,-500.0,0.00022981,2]
[313828451,1707744646585,-500.0,0.00022981,2]
[313828452,1707744646595,-500.0,0.00022981,2]
[313828453,1707744646604,-500.0,0.00022981,2]
[313828454,1707744646614,-500.0,0.00022981,2]
[313828455,1707744646623,-334.44,0.00022981,2]
[313828456,1707744646632,-500.0,0.00022981,2]
[313828457,1707744646642,-500.0,0.00022981,2]
[313828458,1707744646652,-500.0,0.00022981,2]
[313828459,1707744646661,-500.0,0.00022981,2]
[313828460,1707744646670,-873.2,0.00022981,2]
[313828461,1707744646680,-521.15111804,0.00022981,2]
[313828462,1707744646689,-500.0,0.00022981,2]
[313828463,1707744646698,-500.0,0.00022981,2]
[313828464,1707744646708,-500.0,0.00022981,2]
[313828465,1707744646717,-604.60200285,0.00022981,2]
[313828466,1707744646727,-500.0,0.00022981,2]
[313828467,1707744646736,-500.0,0.00022981,2]
[313828468,1707744646745,-500.0,0.00022981,2]
[313828469,1707744646755,-500.0,0.00022981,2]
[313828470,1707744646764,-500.0,0.00022981,2]
[313828471,1707744646773,-500.0,0.00022981,2]
[313828472,1707744646784,-1472.0,0.00022981,2]
[313828473,1707744646793,-500.0,0.00022981,2]
[313828474,1707744646802,-500.0,0.00022981,2]
[313828475,1707744646811,-500.0,0.00022981,2]
[313828476,1707744646821,-500.0,0.00022981,2]
[313828477,1707744646831,-500.0,0.00022981,2]
[313828478,1707744646840,-500.0,0.00022981,2]
[313828479,1707744646849,-500.0,0.00022981,2]
[313828480,1707744646858,-513.64040142,0.00022981,2]
[313828481,1707744646867,-500.0,0.00022981,2]
[313828482,1707744646876,-500.0,0.00022981,2]
[313828483,1707744646886,-500.0,0.00022981,2]
[313828484,1707744646895,-500.0,0.00022981,2]
[313828485,1707744646904,-500.0,0.00022981,2]
[313828486,1707744646913,-500.0,0.00022981,2]
[313828487,1707744646921,-500.0,0.00022981,2]
[313828488,1707744646931,-681.05,0.00022981,2]
[313828489,1707744646940,-500.0,0.00022981,2]
[313828490,1707744646949,-500.0,0.00022981,2]
[313828491,1707744646959,-500.0,0.00022981,2]
[313828492,1707744646968,-500.0,0.00022981,2]
[313828493,1707744646978,-500.0,0.00022981,2]
[313828494,1707744646987,-500.0,0.00022981,2]
[313828495,1707744646997,-611.33,0.00022981,2]
[313828496,1707744647006,-500.0,0.00022981,2]
[313828497,1707744647015,-500.0,0.00022981,2]
[313828498,1707744647025,-271.45732048,0.00022981,2]
[313828499,1707744647034,-504.56,0.00022981,2]
[313828500,1707744647044,-500.0,0.00022981,2]
[313828501,1707744647053,-500.0,0.00022981,2]
[313828502,1707744647062,-500.0,0.00022981,2]
[313828503,1707744647071,-642.87,0.00022981,2]
[313828504,1707744647080,-500.0,0.00022981,2]
[313828505,1707744647089,-500.0,0.00022981,2]
[313828506,1707744647098,-500.0,0.00022981,2]
[313828507,1707744647108,-260.86266963,0.00022981,2]
[313828508,1707744647117,-500.0,0.00022981,2]
[313828509,1707744647126,-500.0,0.00022981,2]
[313828510,1707744647135,-500.0,0.00022981,2]
[313828511,1707744647144,-500.0,0.00022981,2]
[313828512,1707744647153,-500.0,0.00022981,2]
[313828513,1707744647162,-501.06115608,0.00022981,2]
[313828514,1707744647172,-500.0,0.00022981,2]
[313828515,1707744647181,-500.0,0.00022981,2]
[313828516,1707744647190,-500.0,0.00022981,2]
[313828517,1707744647200,-500.0,0.00022981,2]
[313828518,1707744647212,-500.0,0.00022981,2]
[313828519,1707744647222,-500.0,0.00022981,2]
[313828520,1707744647478,-2493.96,0.00022981,2]
[313828521,1707744647498,-500.0,0.00022981,2]
[313828522,1707744647507,-500.0,0.00022981,2]
[313828523,1707744647517,-500.0,0.00022981,2]
[313828524,1707744647526,-500.0,0.00022981,2]
[313828525,1707744647537,-500.0,0.00022981,2]
[313828526,1707744647546,-503.84357752,0.00022981,2]
[313828527,1707744647555,-500.0,0.00022981,2]
[313828528,1707744647564,-500.0,0.00022981,2]
[313828529,1707744647574,-500.0,0.00022981,2]
[313828530,1707744647583,-2726.11,0.00022981,2]
[313828531,1707744647593,-500.0,0.00022981,2]
[313828532,1707744647602,-500.0,0.00022981,2]
[313828533,1707744647611,-500.0,0.00022981,2]
[313828534,1707744647621,-500.0,0.00022981,2]
[313828535,1707744647631,-500.0,0.00022981,2]
[313828536,1707744647641,-500.0,0.00022981,2]
[313828537,1707744647650,-500.0,0.00022981,2]
[313828538,1707744647659,-500.0,0.00022981,2]
[313828539,1707744647669,-500.0,0.00022981,2]
[313828540,1707744647679,-500.0,0.00022981,2]
[313828541,1707744647688,-500.0,0.00022981,2]
[313828542,1707744647699,-500.0,0.00022981,2]
[313828543,1707744647709,-500.0,0.00022981,2]
[313828544,1707744647719,-500.0,0.00022981,2]
[313828545,1707744647729,-500.0,0.00022981,2]
[313828546,1707744647738,-235.52637213,0.00022983,3]
[313828547,1707744647749,-10647.8966057,0.00022983,2]
[313828548,1707744647758,-618.0226667,0.00022983,2]
[313828549,1707744647768,-36914.0679999,0.00022983,2]
[313828550,1707744647777,-37122.9191666,0.00022983,2]
[313828551,1707744647789,-2680.7583887,0.00022983,2]
[313828552,1707744647799,-10096.7222949,0.00022983,2]
[313828553,1707744647810,-11041.5221477,0.00022984,2]
[313828554,1707744647819,-778.4802667,0.00022984,2]
[313828555,1707744647828,-46659.7741333,0.00022984,2]
[313828556,1707744647837,-46785.4181666,0.00022984,2]
[313828557,1707744647847,-3378.5166963,0.00022984,2]
[313828558,1707744647857,-12724.7367741,0.00022984,2]
[313828559,1707744647866,-3314.16939965,0.00022987,2]
[313828560,1707744647876,-150.01,0.00022987,2]
[313828561,1707744647885,-4297.16209308,0.00022988,2]
[313828562,1707744647897,-215417.94978817,0.00022988,2]
[313828563,1707744647906,-278814.71313127,0.00022989,3]
[313828564,1707744647915,-2000.0,0.00022989,2]
[313828565,1707744647924,-200.0,0.00022989,2]
[313828566,1707744647934,-24772.8251968,0.0002299,2]
[313828567,1707744647944,-238.31158515,0.00022997,2]
[313828568,1707744647957,-1191.03732062,0.00022997,2]
[313828569,1707744647966,-1177.0,0.00022998,2]
[313828570,1707744647975,-41223.61823561,0.00022998,2]
[313828571,1707744647984,-32233.00035044,0.00022998,2]
[313828572,1707744647994,-74015.6323748,0.00022999,2]
[313828573,1707744648003,-313.83822338,0.00022999,10]
[313828574,1707744648012,-313.83822338,0.00022999,10]
[313828575,1707744648022,-313.83822338,0.00022999,10]
[313828576,1707744648031,-313.83822338,0.00022999,10]
[313828577,1707744648041,-1017.6414,0.00022999,2]
[313828578,1707744648051,-500.0,0.00022999,2]
[313828579,1707744648060,-500.0,0.00022999,2]
[313828580,1707744648070,-464.09684441,0.00022999,2]
[313828581,1707744648079,-150.0,0.00022999,2]
[313828582,1707744648088,-150.0,0.00022999,2]
[313828583,1707744648097,-150.0,0.00022999,2]
[313828584,1707744648107,-150.0,0.00022999,2]
[313828585,1707744648116,-24856.04779179,0.00023,2]
[313828586,1707744648423,-578.74452204,0.00023,2]
[313828587,1707744648440,-10501.926,0.00023,2]
[313828588,1707744648451,-349300.9720652,0.00023,2]
[313828589,1707744648463,-1097.17489322,0.00023,2]
[313828590,1707744648476,-1150.42610956,0.00023,2]
[313828591,1707744648487,-24792.18549068,0.00023,2]
[313828592,1707744648515,-3510.059181,0.00023,2]
[313828593,1707744649258,-521.42514134,0.00023,2]
[313828594,1707744649270,-2805.18078743,0.00023,2]
[313828595,1707744649305,-3594.49857,0.00023,2]
[313828596,1707744661872,209.79,0.00021932,2]
[313828597,1707744664901,205.0,0.00022183,2]
[313828599,1707744694149,207.0,0.00022183,2]
[313828600,1707744767474,157.71,0.00020127,2]
[313828601,1707744901321,157.54,0.00022208,2]
[313828602,1707745080019,495.9,0.00021999,2]
[313828603,1707745228067,157.71,0.00020002,2]
[313828604,1707745304653,200000.0,0.00022061,2]
[313828605,1707745319039,174.82,0.00021984,2]
[313828607,1707745601568,-165.45,0.00022577,2]
[313828608,1707745667906,603.28,0.0002192,2]
[313828614,1707745713804,205.0,0.00021884,2]
[313828615,1707745755016,157.71,0.00020031,2]
[313828616,1707745774529,174.82,0.00021953,2]
[313828617,1707745782371,4536.0,0.0002254,2]
[313828623,1707745831834,-5057.90674504,0.00022769,2]
[313828624,1707745831843,-161.98637536,0.0002277,2]
[313828625,1707745831860,-73.87656464,0.0002277,2]
[313828626,1707745831870,-300.0,0.00022784,2]
[313828627,1707745831881,-150.0,0.00022784,2]
[313828628,1707745831890,-200.0,0.0002281,2]
[313828629,1707745831900,-515.28702274,0.00022838,2]
[313828630,1707745831909,-216.1211168,0.00022873,2]
[313828631,1707745831920,-150.99,0.00022873,2]
[313828632,1707745831931,-351.35258797,0.00022894,2]
[313828633,1707745831941,-506.70255148,0.00022895,2]
[313828634,1707745831951,-173.09976466,0.00022896,2]
[313828635,1707745831961,-1050.57958058,0.00022896,2]
[313828636,1707745831971,-23000.50364865,0.00022896,2]
[313828637,1707745831983,-6657.06776078,0.00022896,2]
[313828638,1707745831995,-25798.48651812,0.00022896,2]
[313828639,1707745832005,-30744.78105216,0.00022897,2]
[313828641,1707745832014,-540.28513236,0.00022898,2]
[313828643,1707745832024,-500.0,0.00022899,2]
[313828645,1707745832033,-500.0,0.00022899,2]
[313828647,1707745832043,-500.0,0.00022899,2]
[313828649,1707745832052,-500.0,0.00022899,2]
[313828651,1707745832061,-500.0,0.00022899,2]
[313828654,1707745832071,-500.0,0.00022899,2]